[Event "*** Titled Tuesday Blitz"]
[Site "Chess.com"]
[Date "2018.06.05"]
[Round "2"]
[White "TomPolgar"]
[Black "x-6099009240"]
[Result "1-0"]
[WhiteElo "2231"]
[BlackElo "2065"]
[TimeControl "180+2"]
[EndTime "13:25:16 PDT"]
[Termination "TomPolgar won by resignation"]

1. e4 {[%clk 0:03:01.9]} 1... c5 {[%clk 0:02:59.9]} 2. Nf3 {[%clk 0:03:02.4]}
2... g6 {[%clk 0:03:01.3]} 3. d4 {[%clk 0:03:02.6]} 3... cxd4 {[%clk 0:03:03.2]}
4. Qxd4 {[%clk 0:03:03.8]} 4... Nf6 {[%clk 0:03:04.5]} 5. Nc3 {[%clk 0:03:01.8]}
5... Nc6 {[%clk 0:03:06.4]} 6. Qa4 {[%clk 0:03:02.5]} 6... d6 {[%clk 0:03:06.7]}
7. e5 {[%clk 0:03:01.7]} 7... dxe5 {[%clk 0:03:08.6]} 8. Nxe5 {[%clk 0:03:02.9]}
8... Bd7 {[%clk 0:03:10.5]} 9. Nxd7 {[%clk 0:03:03.2]} 9... Qxd7 {[%clk
0:03:12.4]} 10. Be3 {[%clk 0:03:00.9]} 10... Bg7 {[%clk 0:03:09.5]} 11. Rd1
{[%clk 0:02:59.3]} 11... Qc8 {[%clk 0:03:07.1]} 12. Be2 {[%clk 0:02:55.2]} 12...
O-O {[%clk 0:03:08]} 13. O-O {[%clk 0:02:55.9]} 13... Nd7 {[%clk 0:02:57.6]} 14.
Qb3 {[%clk 0:02:12.7]} 14... e6 {[%clk 0:02:36.4]} 15. Nb5 {[%clk 0:01:49.4]}
15... Na5 {[%clk 0:02:07.6]} 16. Qb4 {[%clk 0:01:43.7]} 16... b6 {[%clk
0:02:07.1]} 17. Bf3 {[%clk 0:01:37.8]} 17... Rb8 {[%clk 0:02:01.8]} 18. Nxa7
{[%clk 0:01:35.4]} 18... Qe8 {[%clk 0:01:38.5]} 19. Nc6 {[%clk 0:01:30.5]} 19...
Rc8 {[%clk 0:01:22]} 20. Ne7+ {[%clk 0:01:30.3]} 20... Kh8 {[%clk 0:01:23.4]}
21. Nxc8 {[%clk 0:01:31.4]} 21... Qxc8 {[%clk 0:01:25.3]} 22. c3 {[%clk
0:01:22.2]} 22... Nc4 {[%clk 0:01:22.6]} 23. Bd4 {[%clk 0:01:21.4]} 23... e5
{[%clk 0:01:22.2]} 24. Be3 {[%clk 0:01:16.5]} 24... Nxe3 {[%clk 0:01:23.3]} 25.
fxe3 {[%clk 0:01:17.6]} 25... f5 {[%clk 0:01:24.6]} 26. Qe7 {[%clk 0:00:59.9]}
26... Nc5 {[%clk 0:01:21.1]} 27. b4 {[%clk 0:00:53.6]} 27... Bf6 {[%clk
0:01:07.1]} 28. Qa7 {[%clk 0:00:50.3]} 28... Ne6 {[%clk 0:00:49.1]} 29. Qxb6
{[%clk 0:00:51.1]} 29... Ng7 {[%clk 0:00:46.5]} 30. Qc5 {[%clk 0:00:44]} 30...
e4 {[%clk 0:00:26]} 31. Be2 {[%clk 0:00:36]} 31... Bxc3 {[%clk 0:00:20.2]} 32.
Qxc8 {[%clk 0:00:30]} 32... Rxc8 {[%clk 0:00:22.1]} 33. Rc1 {[%clk 0:00:31]}
33... Ne6 {[%clk 0:00:22.7]} 34. Rc2 {[%clk 0:00:29.1]} 34... Rc7 {[%clk
0:00:17.3]} 35. Rfc1 {[%clk 0:00:28.5]} 35... Be5 {[%clk 0:00:18.8]} 36. Rxc7
{[%clk 0:00:26.8]} 36... Nxc7 {[%clk 0:00:20.7]} 37. b5 {[%clk 0:00:26.4]} 37...
Ne6 {[%clk 0:00:18.4]} 38. b6 {[%clk 0:00:26.3]} 38... Kg7 {[%clk 0:00:18.4]}
39. b7 {[%clk 0:00:25.8]} 39... Kf6 {[%clk 0:00:18.5]} 40. Rc8 {[%clk
0:00:26.3]} 40... f4 {[%clk 0:00:19.5]} 41. b8=Q {[%clk 0:00:25]} 41... Bxb8
{[%clk 0:00:21.1]} 42. Rxb8 {[%clk 0:00:26.9]} 42... fxe3 {[%clk 0:00:22.8]} 43.
a4 {[%clk 0:00:23.6]} 43... Nd4 {[%clk 0:00:23.6]} 44. Rb2 {[%clk 0:00:23.8]}
44... Ke5 {[%clk 0:00:24.7]} 45. a5 {[%clk 0:00:25]} 45... Nc6 {[%clk
0:00:17.2]} 46. a6 {[%clk 0:00:26.1]} 46... Kd4 {[%clk 0:00:17.8]} 47. Rc2
{[%clk 0:00:25.4]} 47... Na7 {[%clk 0:00:16.9]} 48. Rc7 {[%clk 0:00:25.7]} 48...
h5 {[%clk 0:00:14.2]} 49. Rxa7 {[%clk 0:00:26]} 49... Kc3 {[%clk 0:00:15.9]} 50.
Rd7 {[%clk 0:00:26.8]} 1-0

[Event "*** Titled Tuesday Blitz"]
[Site "Chess.com"]
[Date "2018.06.05"]
[Round "2"]
[White "Godzillator"]
[Black "PowerThinking2650"]
[Result "1-0"]
[WhiteElo "2243"]
[BlackElo "2337"]
[TimeControl "180+2"]
[EndTime "13:25:18 PDT"]
[Termination "Godzillator won by checkmate"]

1. d4 {[%clk 0:03:01.9]} 1... Nf6 {[%clk 0:03:00.3]} 2. c4 {[%clk 0:03:03]} 2...
g6 {[%clk 0:03:01.4]} 3. Nc3 {[%clk 0:03:04.1]} 3... Bg7 {[%clk 0:03:02.7]} 4.
e4 {[%clk 0:03:03.8]} 4... d6 {[%clk 0:03:04]} 5. Be2 {[%clk 0:03:05.1]} 5...
O-O {[%clk 0:03:04.9]} 6. Bg5 {[%clk 0:03:06.5]} 6... Na6 {[%clk 0:03:01.1]} 7.
f4 {[%clk 0:03:06.5]} 7... c6 {[%clk 0:02:52.7]} 8. Qd2 {[%clk 0:03:07.2]} 8...
Nc7 {[%clk 0:02:51.7]} 9. Bf3 {[%clk 0:03:08.3]} 9... h6 {[%clk 0:02:46.3]} 10.
Bh4 {[%clk 0:03:08.7]} 10... d5 {[%clk 0:02:19.4]} 11. cxd5 {[%clk 0:02:41.7]}
11... cxd5 {[%clk 0:02:19.8]} 12. e5 {[%clk 0:02:42.8]} 12... Nh7 {[%clk
0:01:58.9]} 13. Nge2 {[%clk 0:02:40.5]} 13... b5 {[%clk 0:01:53.9]} 14. a3
{[%clk 0:02:39.6]} 14... a5 {[%clk 0:01:54.4]} 15. O-O {[%clk 0:02:39.2]} 15...
Bb7 {[%clk 0:01:41.4]} 16. Nc1 {[%clk 0:02:18.3]} 16... a4 {[%clk 0:01:36.3]}
17. Nd3 {[%clk 0:02:17.6]} 17... Ne6 {[%clk 0:01:34.2]} 18. Nb4 {[%clk
0:02:04.6]} 18... g5 {[%clk 0:01:30.4]} 19. fxg5 {[%clk 0:01:47.3]} 19... hxg5
{[%clk 0:01:25.2]} 20. Bg3 {[%clk 0:01:43]} 20... Nc7 {[%clk 0:01:23.6]} 21.
Rae1 {[%clk 0:01:28.1]} 21... e6 {[%clk 0:01:24]} 22. Be2 {[%clk 0:01:24.9]}
22... Qd7 {[%clk 0:01:23.7]} 23. Bd3 {[%clk 0:01:24.8]} 23... f5 {[%clk
0:01:02.8]} 24. exf6 {[%clk 0:01:23.8]} 24... Bxf6 {[%clk 0:00:57.3]} 25. Be5
{[%clk 0:00:55.3]} 25... Bxe5 {[%clk 0:00:52.9]} 26. Rxe5 {[%clk 0:00:56]} 26...
Rxf1+ {[%clk 0:00:53.6]} 27. Kxf1 {[%clk 0:00:56.9]} 27... Rf8+ {[%clk
0:00:54.1]} 28. Kg1 {[%clk 0:00:57.9]} 28... Qf7 {[%clk 0:00:53.4]} 29. h3
{[%clk 0:00:49]} 29... Qf4 {[%clk 0:00:49.1]} 30. Qxf4 {[%clk 0:00:43.5]} 30...
Rxf4 {[%clk 0:00:48.3]} 31. Ne2 {[%clk 0:00:35.9]} 31... Rf6 {[%clk 0:00:37.9]}
32. Bxh7+ {[%clk 0:00:36]} 32... Kxh7 {[%clk 0:00:38.8]} 33. Rxg5 {[%clk
0:00:36.9]} 33... Ne8 {[%clk 0:00:38.7]} 34. Nc3 {[%clk 0:00:33.8]} 34... Nd6
{[%clk 0:00:38.2]} 35. Nd3 {[%clk 0:00:24]} 35... Bc8 {[%clk 0:00:21.9]} 36. Ne5
{[%clk 0:00:20]} 36... Rf4 {[%clk 0:00:18.6]} 37. Rg4 {[%clk 0:00:21]} 37... Rf5
{[%clk 0:00:13.5]} 38. h4 {[%clk 0:00:20.9]} 38... Kh6 {[%clk 0:00:09.2]} 39. g3
{[%clk 0:00:22]} 39... Kh5 {[%clk 0:00:09.6]} 40. Rg8 {[%clk 0:00:22.8]} 40...
Bb7 {[%clk 0:00:09.8]} 41. g4+ {[%clk 0:00:23.5]} 41... Kxh4 {[%clk 0:00:10.1]}
42. gxf5 {[%clk 0:00:24.7]} 42... Nxf5 {[%clk 0:00:12]} 43. Nf3+ {[%clk
0:00:24.3]} 43... Kh5 {[%clk 0:00:12.2]} 44. Ne2 {[%clk 0:00:25]} 44... Ne3
{[%clk 0:00:12.4]} 45. Nf4+ {[%clk 0:00:25.8]} 45... Kh6 {[%clk 0:00:13.2]} 46.
Ne5 {[%clk 0:00:26.3]} 46... Nd1 {[%clk 0:00:13.2]} 47. Nxe6 {[%clk 0:00:27.1]}
47... Nxb2 {[%clk 0:00:13.3]} 48. Rh8# {[%clk 0:00:27.8]} 1-0

[Event "*** Titled Tuesday Blitz"]
[Site "Chess.com"]
[Date "2018.06.05"]
[Round "2"]
[White "HanSchut"]
[Black "nochewycandy"]
[Result "1-0"]
[WhiteElo "2225"]
[BlackElo "2098"]
[TimeControl "180+2"]
[EndTime "13:25:23 PDT"]
[Termination "HanSchut won by checkmate"]

1. e4 {[%clk 0:03:01.9]} 1... g6 {[%clk 0:02:56.7]} 2. d4 {[%clk 0:03:02.4]}
2... Bg7 {[%clk 0:02:58.6]} 3. Nc3 {[%clk 0:03:02.9]} 3... d6 {[%clk 0:03:00]}
4. f4 {[%clk 0:03:04.2]} 4... a6 {[%clk 0:02:59.3]} 5. Nf3 {[%clk 0:03:04.9]}
5... b5 {[%clk 0:03:00.7]} 6. Bd3 {[%clk 0:03:05.9]} 6... Bb7 {[%clk 0:03:01.9]}
7. Qe2 {[%clk 0:03:04.9]} 7... Nd7 {[%clk 0:03:01.8]} 8. e5 {[%clk 0:03:05.4]}
8... Nh6 {[%clk 0:03:03.3]} 9. Be4 {[%clk 0:02:58]} 9... Bxe4 {[%clk 0:03:03.4]}
10. Nxe4 {[%clk 0:02:59.9]} 10... O-O {[%clk 0:03:05.2]} 11. e6 {[%clk
0:02:44.3]} 11... Nb6 {[%clk 0:02:59]} 12. exf7+ {[%clk 0:02:33.8]} 12... Nxf7
{[%clk 0:03:00.9]} 13. Neg5 {[%clk 0:02:30.5]} 13... Qd7 {[%clk 0:02:56.2]} 14.
Ne6 {[%clk 0:02:27.7]} 14... Rfe8 {[%clk 0:02:50.7]} 15. O-O {[%clk 0:02:19.9]}
15... Bf6 {[%clk 0:02:44.5]} 16. c3 {[%clk 0:02:08.1]} 16... Nd8 {[%clk
0:02:42.2]} 17. f5 {[%clk 0:02:01.5]} 17... gxf5 {[%clk 0:02:42.3]} 18. Nxd8
{[%clk 0:01:52.3]} 18... Raxd8 {[%clk 0:02:42.6]} 19. Bg5 {[%clk 0:01:53.4]}
19... Bxg5 {[%clk 0:02:39.5]} 20. Nxg5 {[%clk 0:01:53.7]} 20... e5 {[%clk
0:02:41.4]} 21. dxe5 {[%clk 0:01:42.2]} 21... Rxe5 {[%clk 0:02:32]} 22. Qh5
{[%clk 0:01:35.4]} 22... Nd5 {[%clk 0:02:28.7]} 23. Nf3 {[%clk 0:01:29.9]} 23...
Re7 {[%clk 0:02:14.1]} 24. Nh4 {[%clk 0:01:26.5]} 24... Ne3 {[%clk 0:02:00.6]}
25. Rf3 {[%clk 0:01:23.8]} 25... Qe6 {[%clk 0:01:50.4]} 26. Re1 {[%clk
0:01:12.4]} 26... f4 {[%clk 0:01:46.6]} 27. Qg5+ {[%clk 0:01:11.4]} 27... Kh8
{[%clk 0:01:44.8]} 28. Qxf4 {[%clk 0:01:11.6]} 28... Rde8 {[%clk 0:01:23.8]} 29.
g3 {[%clk 0:01:07.5]} 29... Qe5 {[%clk 0:01:18.9]} 30. Qxe5+ {[%clk 0:00:59.4]}
30... Rxe5 {[%clk 0:01:20.8]} 31. Rf7 {[%clk 0:00:59.1]} 31... c5 {[%clk
0:01:17.1]} 32. Rd7 {[%clk 0:00:54.8]} 32... d5 {[%clk 0:01:18]} 33. Rd6 {[%clk
0:00:46.5]} 33... R8e6 {[%clk 0:01:18.5]} 34. Rxe6 {[%clk 0:00:46.7]} 34... Rxe6
{[%clk 0:01:18.9]} 35. Ng2 {[%clk 0:00:46.7]} 35... d4 {[%clk 0:01:18.7]} 36.
cxd4 {[%clk 0:00:47.4]} 36... cxd4 {[%clk 0:01:20.1]} 37. Nxe3 {[%clk
0:00:48.9]} 37... dxe3 {[%clk 0:01:21.5]} 38. Kg2 {[%clk 0:00:49.9]} 38... Rc6
{[%clk 0:01:21.9]} 39. Kf3 {[%clk 0:00:49.7]} 39... Rc2 {[%clk 0:01:22.8]} 40.
Re2 {[%clk 0:00:51.3]} 40... Rc1 {[%clk 0:01:14.4]} 41. Kxe3 {[%clk 0:00:52.2]}
41... Kg7 {[%clk 0:01:14.5]} 42. Kf4 {[%clk 0:00:53.5]} 42... Rc6 {[%clk
0:01:14.5]} 43. h4 {[%clk 0:00:52.3]} 43... Kf6 {[%clk 0:01:15.2]} 44. g4 {[%clk
0:00:51.7]} 44... Rc4+ {[%clk 0:01:16.4]} 45. Kf3 {[%clk 0:00:47.9]} 45... h6
{[%clk 0:01:16.7]} 46. Rd2 {[%clk 0:00:46]} 46... Ke6 {[%clk 0:01:16.9]} 47. b3
{[%clk 0:00:42.7]} 47... Rc1 {[%clk 0:01:12.3]} 48. Ke3 {[%clk 0:00:42.4]} 48...
Rh1 {[%clk 0:01:11.3]} 49. h5 {[%clk 0:00:42.8]} 49... Rg1 {[%clk 0:01:12.4]}
50. Kf4 {[%clk 0:00:43.9]} 50... Rf1+ {[%clk 0:01:13.6]} 51. Kg3 {[%clk
0:00:44.3]} 51... Re1 {[%clk 0:01:13.6]} 52. Kf3 {[%clk 0:00:42.3]} 52... Ke7
{[%clk 0:01:13.5]} 53. Re2+ {[%clk 0:00:43.1]} 53... Rxe2 {[%clk 0:01:12.5]} 54.
Kxe2 {[%clk 0:00:44.9]} 54... Kf6 {[%clk 0:01:14.4]} 55. b4 {[%clk 0:00:41.7]}
55... Kg5 {[%clk 0:01:11.4]} 56. Kf3 {[%clk 0:00:42.9]} 56... Kh4 {[%clk
0:01:12.8]} 57. Kf4 {[%clk 0:00:42.2]} 57... Kh3 {[%clk 0:01:14.3]} 58. Kf5
{[%clk 0:00:43.1]} 58... Kh4 {[%clk 0:01:15]} 59. Kg6 {[%clk 0:00:42.9]} 59...
Kxg4 {[%clk 0:01:16.1]} 60. Kxh6 {[%clk 0:00:44.5]} 60... Kf4 {[%clk 0:01:17.6]}
61. Kg6 {[%clk 0:00:45.4]} 61... Ke4 {[%clk 0:01:19.5]} 62. h6 {[%clk
0:00:46.8]} 62... Kd4 {[%clk 0:01:21.4]} 63. h7 {[%clk 0:00:48]} 63... Kc4
{[%clk 0:01:23.3]} 64. h8=Q {[%clk 0:00:47.8]} 64... Kxb4 {[%clk 0:01:25.2]} 65.
Qb2+ {[%clk 0:00:48.9]} 65... Ka4 {[%clk 0:01:25.1]} 66. Qb3+ {[%clk 0:00:49.3]}
66... Ka5 {[%clk 0:01:26]} 67. Kf5 {[%clk 0:00:49.1]} 67... Kb6 {[%clk
0:01:26.8]} 68. Ke5 {[%clk 0:00:50.3]} 68... Kc5 {[%clk 0:01:28]} 69. Qc3+
{[%clk 0:00:49.2]} 69... Kb6 {[%clk 0:01:29.3]} 70. Kd5 {[%clk 0:00:50.6]} 70...
a5 {[%clk 0:01:30.2]} 71. Kd6 {[%clk 0:00:51.1]} 71... a4 {[%clk 0:01:30.9]} 72.
Qb4 {[%clk 0:00:51.9]} 72... Ka6 {[%clk 0:01:31.9]} 73. Kc5 {[%clk 0:00:52.3]}
73... a3 {[%clk 0:01:33.8]} 74. Qxb5+ {[%clk 0:00:53.2]} 74... Ka7 {[%clk
0:01:35.7]} 75. Kc6 {[%clk 0:00:52.5]} 75... Ka8 {[%clk 0:01:37.1]} 76. Qb7#
{[%clk 0:00:54]} 1-0

[Event "*** Titled Tuesday Blitz"]
[Site "Chess.com"]
[Date "2018.06.05"]
[Round "2"]
[White "Aryangholami"]
[Black "BillieKimbah"]
[Result "0-1"]
[WhiteElo "2539"]
[BlackElo "2746"]
[TimeControl "180+2"]
[EndTime "13:25:24 PDT"]
[Termination "BillieKimbah won by checkmate"]

1. d4 {[%clk 0:03:01.7]} 1... Nf6 {[%clk 0:03:00.8]} 2. Nf3 {[%clk 0:02:59.6]}
2... d5 {[%clk 0:03:01]} 3. Bf4 {[%clk 0:03:00.1]} 3... Bf5 {[%clk 0:03:01.6]}
4. e3 {[%clk 0:03:00.9]} 4... e6 {[%clk 0:03:02.5]} 5. Be2 {[%clk 0:03:02.4]}
5... Nbd7 {[%clk 0:02:59.3]} 6. Ne5 {[%clk 0:03:03]} 6... Nxe5 {[%clk 0:02:56]}
7. dxe5 {[%clk 0:03:03.2]} 7... Nd7 {[%clk 0:02:56.2]} 8. Nd2 {[%clk 0:02:58.7]}
8... Be7 {[%clk 0:02:55.8]} 9. O-O {[%clk 0:02:54.1]} 9... O-O {[%clk
0:02:55.1]} 10. c4 {[%clk 0:02:54.8]} 10... c6 {[%clk 0:02:55.1]} 11. cxd5
{[%clk 0:02:53.6]} 11... cxd5 {[%clk 0:02:52]} 12. Nf3 {[%clk 0:02:54.4]} 12...
h6 {[%clk 0:02:51.5]} 13. Nd4 {[%clk 0:02:53.8]} 13... Bg6 {[%clk 0:02:52.4]}
14. Bh5 {[%clk 0:02:51]} 14... Bh7 {[%clk 0:02:40.5]} 15. Qg4 {[%clk 0:02:42.9]}
15... Kh8 {[%clk 0:02:41.1]} 16. Qh3 {[%clk 0:02:21]} 16... Bg5 {[%clk
0:02:32.9]} 17. Bg3 {[%clk 0:02:17.6]} 17... Nc5 {[%clk 0:02:16.5]} 18. f4
{[%clk 0:02:01.9]} 18... Be7 {[%clk 0:02:17.3]} 19. f5 {[%clk 0:02:02.4]} 19...
exf5 {[%clk 0:02:17.6]} 20. Nxf5 {[%clk 0:02:02.9]} 20... Ne6 {[%clk 0:02:13.1]}
21. Nd6 {[%clk 0:01:57.3]} 21... Ng5 {[%clk 0:01:56.1]} 22. Qg4 {[%clk
0:01:51.1]} 22... g6 {[%clk 0:01:52.9]} 23. h4 {[%clk 0:01:35.4]} 23... gxh5
{[%clk 0:01:43.1]} 24. Qxh5 {[%clk 0:01:36.3]} 24... Bxd6 {[%clk 0:01:39.5]} 25.
hxg5 {[%clk 0:01:18]} 25... Bc5 {[%clk 0:01:37.2]} 26. Bf4 {[%clk 0:01:12.2]}
26... Qb6 {[%clk 0:01:24]} 27. Rf3 {[%clk 0:01:10.8]} 27... Qg6 {[%clk
0:01:21.8]} 28. Qh4 {[%clk 0:01:08.8]} 28... Be7 {[%clk 0:01:16.7]} 29. Rh3
{[%clk 0:00:59.4]} 29... Bxg5 {[%clk 0:01:14.3]} 30. Bxg5 {[%clk 0:00:58.1]}
30... Qxg5 {[%clk 0:01:10.9]} 31. Qd4 {[%clk 0:00:52]} 31... Rg8 {[%clk
0:01:10.7]} 32. Rh2 {[%clk 0:00:46.9]} 32... Rae8 {[%clk 0:01:11]} 33. e6+
{[%clk 0:00:40.9]} 33... f6 {[%clk 0:01:11.9]} 34. Rf1 {[%clk 0:00:37.1]} 34...
Rxe6 {[%clk 0:01:12.3]} 35. Rf4 {[%clk 0:00:37.2]} 35... Be4 {[%clk 0:00:48.8]}
36. Rfh4 {[%clk 0:00:31.7]} 36... Rg6 {[%clk 0:00:43.1]} 37. Qc5 {[%clk
0:00:26.7]} 37... Re8 {[%clk 0:00:41.6]} 38. Rh5 {[%clk 0:00:21.5]} 38... Qg3
{[%clk 0:00:37.6]} 39. Qc3 {[%clk 0:00:20.9]} 39... Kg7 {[%clk 0:00:33.6]} 40.
R5h3 {[%clk 0:00:19.5]} 40... Qe5 {[%clk 0:00:33.8]} 41. Qb4 {[%clk 0:00:20.7]}
41... Rc8 {[%clk 0:00:30.5]} 42. Qxb7+ {[%clk 0:00:20.6]} 42... Rc7 {[%clk
0:00:32]} 43. Qb4 {[%clk 0:00:19.2]} 43... Rc1+ {[%clk 0:00:26.6]} 44. Kf2
{[%clk 0:00:19.7]} 44... Rc2+ {[%clk 0:00:27.7]} 45. Ke1 {[%clk 0:00:21.1]}
45... Rxb2 {[%clk 0:00:26.3]} 46. Qa5 {[%clk 0:00:18.8]} 46... Rb1+ {[%clk
0:00:26.7]} 47. Kd2 {[%clk 0:00:17.3]} 47... Qb2# {[%clk 0:00:27]} 0-1

[Event "*** Titled Tuesday Blitz"]
[Site "Chess.com"]
[Date "2018.06.05"]
[Round "2"]
[White "EmreDedebas"]
[Black "FancyPlaySyndrome"]
[Result "1-0"]
[WhiteElo "2372"]
[BlackElo "2412"]
[TimeControl "180+2"]
[EndTime "13:25:25 PDT"]
[Termination "EmreDedebas won by resignation"]

1. d4 {[%clk 0:03:01.9]} 1... g6 {[%clk 0:03:00.1]} 2. e4 {[%clk 0:02:56.7]}
2... Bg7 {[%clk 0:03:01.5]} 3. Nc3 {[%clk 0:02:58.3]} 3... d6 {[%clk 0:03:02.4]}
4. Nf3 {[%clk 0:02:58.3]} 4... a6 {[%clk 0:03:03.3]} 5. Be3 {[%clk 0:02:59.8]}
5... b5 {[%clk 0:03:04.3]} 6. Bd3 {[%clk 0:03:01.1]} 6... Bb7 {[%clk 0:03:05.6]}
7. a4 {[%clk 0:02:50.3]} 7... b4 {[%clk 0:03:05]} 8. Ne2 {[%clk 0:02:51.8]} 8...
Nd7 {[%clk 0:03:05.2]} 9. Ng3 {[%clk 0:02:51.2]} 9... Ngf6 {[%clk 0:03:05.5]}
10. Qd2 {[%clk 0:02:51.9]} 10... c5 {[%clk 0:03:05.8]} 11. c3 {[%clk 0:02:52.1]}
11... bxc3 {[%clk 0:03:03.5]} 12. bxc3 {[%clk 0:02:54]} 12... Qc7 {[%clk
0:03:04.9]} 13. h3 {[%clk 0:02:53.7]} 13... O-O {[%clk 0:03:02.8]} 14. O-O
{[%clk 0:02:50.4]} 14... Rfc8 {[%clk 0:02:52.9]} 15. Rfc1 {[%clk 0:02:45.4]}
15... a5 {[%clk 0:02:41.6]} 16. Bf4 {[%clk 0:02:36.2]} 16... e5 {[%clk
0:02:37.2]} 17. Be3 {[%clk 0:02:29.1]} 17... Re8 {[%clk 0:02:29.5]} 18. d5
{[%clk 0:01:45.4]} 18... Bxd5 {[%clk 0:02:30.6]} 19. exd5 {[%clk 0:01:40.9]}
19... e4 {[%clk 0:02:32]} 20. Be2 {[%clk 0:01:40.2]} 20... exf3 {[%clk
0:02:32.7]} 21. Bxf3 {[%clk 0:01:42.1]} 21... Ne5 {[%clk 0:02:34.2]} 22. Be2
{[%clk 0:01:41]} 22... h5 {[%clk 0:02:25.9]} 23. Rab1 {[%clk 0:01:31.1]} 23...
h4 {[%clk 0:01:25.5]} 24. Nf1 {[%clk 0:01:26.8]} 24... Ne4 {[%clk 0:01:19]} 25.
Qc2 {[%clk 0:01:27.3]} 25... f5 {[%clk 0:01:20.2]} 26. Bf4 {[%clk 0:01:06]}
26... c4 {[%clk 0:00:42.7]} 27. Qa2 {[%clk 0:00:55.3]} 27... Nd3 {[%clk
0:00:40.9]} 28. Bxd3 {[%clk 0:00:45.2]} 28... cxd3 {[%clk 0:00:42.8]} 29. Qa3
{[%clk 0:00:46.5]} 29... Qc4 {[%clk 0:00:33.8]} 30. Nd2 {[%clk 0:00:35.9]} 30...
Qxd5 {[%clk 0:00:31.6]} 31. c4 {[%clk 0:00:36.2]} 31... Qe6 {[%clk 0:00:29.5]}
32. Qxd3 {[%clk 0:00:29.8]} 32... Rad8 {[%clk 0:00:20.4]} 33. Nxe4 {[%clk
0:00:28.4]} 33... Qxe4 {[%clk 0:00:21]} 34. Qd2 {[%clk 0:00:29.5]} 34... d5
{[%clk 0:00:19.7]} 35. c5 {[%clk 0:00:30.6]} 35... Qxa4 {[%clk 0:00:20.3]} 36.
c6 {[%clk 0:00:31.9]} 36... Qe4 {[%clk 0:00:19.8]} 37. c7 {[%clk 0:00:32.4]}
37... Rc8 {[%clk 0:00:21.4]} 38. Re1 {[%clk 0:00:30.2]} 38... Qc4 {[%clk
0:00:19.6]} 39. Rbc1 {[%clk 0:00:29.6]} 39... Qa6 {[%clk 0:00:20.1]} 40. Qxd5+
{[%clk 0:00:29.5]} 40... Kh7 {[%clk 0:00:21.6]} 41. Qf7 {[%clk 0:00:27.5]} 41...
Rxe1+ {[%clk 0:00:20.6]} 42. Rxe1 {[%clk 0:00:29.4]} 42... Qf6 {[%clk
0:00:18.2]} 43. Qd7 {[%clk 0:00:25.3]} 43... Qf8 {[%clk 0:00:17.5]} 44. Be5
{[%clk 0:00:24.4]} 44... Re8 {[%clk 0:00:15.7]} 45. Kf1 {[%clk 0:00:19.8]} 45...
Re7 {[%clk 0:00:10.9]} 46. Bxg7 {[%clk 0:00:09.8]} 1-0

[Event "*** Titled Tuesday Blitz"]
[Site "Chess.com"]
[Date "2018.06.05"]
[Round "2"]
[White "GadimbayliA"]
[Black "FMJoseHerrera"]
[Result "1-0"]
[WhiteElo "2441"]
[BlackElo "2453"]
[TimeControl "180+2"]
[EndTime "13:25:26 PDT"]
[Termination "GadimbayliA won by checkmate"]

1. e4 {[%clk 0:03:01.9]} 1... c5 {[%clk 0:03:00.3]} 2. Nf3 {[%clk 0:03:02.6]}
2... e6 {[%clk 0:03:01]} 3. d4 {[%clk 0:03:01.8]} 3... cxd4 {[%clk 0:03:02.3]}
4. Nxd4 {[%clk 0:03:03.7]} 4... a6 {[%clk 0:03:03.8]} 5. Bd3 {[%clk 0:03:02.8]}
5... Qc7 {[%clk 0:03:05.1]} 6. O-O {[%clk 0:03:01.3]} 6... Nf6 {[%clk
0:03:04.9]} 7. Qe2 {[%clk 0:03:01.6]} 7... d6 {[%clk 0:03:05.6]} 8. c4 {[%clk
0:03:00.5]} 8... Nbd7 {[%clk 0:03:05.9]} 9. Nc3 {[%clk 0:02:57.8]} 9... Be7
{[%clk 0:03:06.6]} 10. f4 {[%clk 0:02:56.5]} 10... b6 {[%clk 0:03:06.6]} 11. Bd2
{[%clk 0:02:49]} 11... Bb7 {[%clk 0:03:06.3]} 12. Rae1 {[%clk 0:02:50.6]} 12...
O-O {[%clk 0:02:51.3]} 13. Kh1 {[%clk 0:02:51.3]} 13... Ne8 {[%clk 0:02:48.6]}
14. f5 {[%clk 0:02:42.1]} 14... e5 {[%clk 0:02:48.2]} 15. Nc2 {[%clk 0:02:42]}
15... Rc8 {[%clk 0:02:47.6]} 16. Ne3 {[%clk 0:02:42.2]} 16... Nef6 {[%clk
0:02:40.2]} 17. b4 {[%clk 0:02:34.6]} 17... h5 {[%clk 0:02:06.1]} 18. Rc1 {[%clk
0:02:27.6]} 18... Qb8 {[%clk 0:01:50.6]} 19. Be1 {[%clk 0:02:20.9]} 19... b5
{[%clk 0:01:29.5]} 20. cxb5 {[%clk 0:02:12.7]} 20... axb5 {[%clk 0:01:31.4]} 21.
Bxb5 {[%clk 0:02:14.6]} 21... Nb6 {[%clk 0:01:20.9]} 22. a4 {[%clk 0:01:41.6]}
22... Nxe4 {[%clk 0:00:32.7]} 23. Nxe4 {[%clk 0:01:13.5]} 23... Bxe4 {[%clk
0:00:34.6]} 24. Bg3 {[%clk 0:01:08.2]} 24... Bf6 {[%clk 0:00:24.6]} 25. Rxc8
{[%clk 0:01:01.8]} 25... Rxc8 {[%clk 0:00:25.2]} 26. Qxh5 {[%clk 0:01:00]} 26...
Qa8 {[%clk 0:00:25.4]} 27. Rg1 {[%clk 0:00:48.1]} 27... Rc3 {[%clk 0:00:23.4]}
28. Bf2 {[%clk 0:00:48.2]} 28... Nd5 {[%clk 0:00:19.9]} 29. Nxd5 {[%clk
0:00:42.8]} 29... Qxd5 {[%clk 0:00:20.7]} 30. Qg4 {[%clk 0:00:40.1]} 30... Rc2
{[%clk 0:00:21.3]} 31. Be2 {[%clk 0:00:35.4]} 31... Qd2 {[%clk 0:00:20.9]} 32.
Qxe4 {[%clk 0:00:33]} 32... Qxe2 {[%clk 0:00:22.3]} 33. Qxe2 {[%clk 0:00:31.5]}
33... Rxe2 {[%clk 0:00:24.2]} 34. Bb6 {[%clk 0:00:33.1]} 34... Rb2 {[%clk
0:00:25]} 35. b5 {[%clk 0:00:28.7]} 35... e4 {[%clk 0:00:25.6]} 36. g3 {[%clk
0:00:25.3]} 36... d5 {[%clk 0:00:26.4]} 37. Rd1 {[%clk 0:00:24.2]} 37... Ra2
{[%clk 0:00:26.7]} 38. a5 {[%clk 0:00:23.3]} 38... d4 {[%clk 0:00:26.4]} 39.
Bxd4 {[%clk 0:00:22.2]} 39... Rxa5 {[%clk 0:00:26.2]} 40. Bxf6 {[%clk
0:00:20.4]} 40... gxf6 {[%clk 0:00:28.1]} 41. Rb1 {[%clk 0:00:21.9]} 41... Ra7
{[%clk 0:00:29.5]} 42. b6 {[%clk 0:00:17.5]} 42... Rb7 {[%clk 0:00:30.9]} 43.
Kg2 {[%clk 0:00:15.3]} 43... Kf8 {[%clk 0:00:32.7]} 44. Kf2 {[%clk 0:00:17.2]}
44... Ke7 {[%clk 0:00:34.6]} 45. Ke3 {[%clk 0:00:18.8]} 45... Kd6 {[%clk
0:00:36.5]} 46. Kxe4 {[%clk 0:00:20.4]} 46... Kc6 {[%clk 0:00:37.8]} 47. Kf4
{[%clk 0:00:21.9]} 47... Rb8 {[%clk 0:00:36.7]} 48. b7 {[%clk 0:00:23.2]} 48...
Kc7 {[%clk 0:00:38]} 49. h4 {[%clk 0:00:23.7]} 49... Kd6 {[%clk 0:00:39.5]} 50.
h5 {[%clk 0:00:24.7]} 50... Ke7 {[%clk 0:00:41.4]} 51. h6 {[%clk 0:00:25.5]}
51... Kf8 {[%clk 0:00:43.3]} 52. Kg4 {[%clk 0:00:26.3]} 52... Kg8 {[%clk
0:00:45]} 53. Kh5 {[%clk 0:00:27.4]} 53... Kh7 {[%clk 0:00:46.9]} 54. Rb6 {[%clk
0:00:28.5]} 54... Kh8 {[%clk 0:00:47.3]} 55. g4 {[%clk 0:00:28.8]} 55... Kh7
{[%clk 0:00:48.2]} 56. Rxf6 {[%clk 0:00:28.6]} 56... Rxb7 {[%clk 0:00:49.6]} 57.
g5 {[%clk 0:00:30.5]} 57... Kg8 {[%clk 0:00:50]} 58. Rc6 {[%clk 0:00:31.5]}
58... Rb1 {[%clk 0:00:50.3]} 59. Rc8+ {[%clk 0:00:31.7]} 59... Kh7 {[%clk
0:00:50.9]} 60. g6+ {[%clk 0:00:33.6]} 60... fxg6+ {[%clk 0:00:52.3]} 61. fxg6#
{[%clk 0:00:35.5]} 1-0